fUST/lending_fUST_20251123
["ID","MTS","AMOUNT","RATE_DAILY","PERIOD"]
[394668622,1763850824661,-506.37194229,0.00046849,120]
[394668623,1763850824686,-1085.03,0.00046849,120]
[394668624,1763850824714,-639.15198012,0.00046849,30]
[394668625,1763850824739,-500.0,0.00046849,120]
[394668626,1763850824764,-500.0,0.00046849,120]
[394668627,1763850824789,-500.0,0.00046849,120]
[394668628,1763850824815,-1454.2,0.00046849,120]
[394668629,1763850824840,-500.0,0.00046849,120]
[394668630,1763850824866,-500.0,0.00046849,120]
[394668631,1763850824891,-500.0,0.00046849,120]
[394668632,1763850824917,-500.0,0.00046849,120]
[394668633,1763850824943,-457.06026524,0.00046849,120]
[394668634,1763850824970,-500.0,0.00046849,120]
[394668635,1763850824995,-271.78396984,0.00046849,120]
[394668636,1763850825022,-2430.68,0.00046849,120]
[394668637,1763850825048,-380.39072372,0.00046849,120]
[394668638,1763850825073,-500.0,0.00046849,120]
[394668639,1763850825098,-432.43721147,0.00046849,120]
[394668640,1763850825123,-542.68513432,0.00046849,120]
[394668641,1763850825148,-500.0,0.00046849,120]
[394668642,1763850825173,-500.0,0.00046849,120]
[394668643,1763850825198,-500.0,0.00046849,120]
[394668644,1763850825224,-371.52665844,0.00046849,120]
[394668645,1763850825248,-336.37862305,0.00046849,120]
[394668646,1763850825273,-500.0,0.00046849,120]
[394668647,1763850825298,-709.47,0.00046849,120]
[394668648,1763850825323,-602.68023878,0.00046849,120]
[394668649,1763850825348,-500.0,0.00046849,120]
[394668650,1763850825374,-404.24685349,0.00046849,120]
[394668651,1763850825400,-522.28501383,0.00046849,120]
[394668652,1763850825430,-548.67326455,0.00046849,120]
[394668653,1763850825457,-316.46814317,0.00046849,120]
[394668654,1763850825482,-500.0,0.00046849,120]
[394668655,1763850825507,-279.21111337,0.00046849,120]
[394668656,1763850825532,-500.0,0.00046849,120]
[394668657,1763850825557,-500.0,0.00046849,120]
[394668658,1763850825582,-500.0,0.00046849,120]
[394668659,1763850825607,-205.82670307,0.00046849,120]
[394668660,1763850825631,-288.46037404,0.00046849,120]
[394668661,1763850825661,-1684.24,0.00046849,120]
[394668662,1763850825686,-500.0,0.00046849,120]
[394668663,1763850825712,-283.67397305,0.00046849,120]
[394668664,1763850825736,-633.89745565,0.00046849,120]
[394668665,1763850825760,-564.14,0.00046849,120]
[394668666,1763850825785,-467.33701165,0.00046849,120]
[394668667,1763850825810,-500.0,0.00046849,120]
[394668668,1763850825836,-500.0,0.00046849,120]
[394668669,1763850825861,-362.38888935,0.00046849,120]
[394668670,1763850825885,-454.94754051,0.00046849,120]
[394668671,1763850825909,-509.32600815,0.00046849,120]
[394668672,1763850825934,-276.01048681,0.00046849,120]
[394668673,1763850825959,-218.05066182,0.00046849,120]
[394668674,1763850825983,-500.0,0.00046849,120]
[394668675,1763850826008,-500.0,0.00046849,120]
[394668676,1763850826033,-500.0,0.00046849,120]
[394668677,1763850826058,-424.65242847,0.00046849,120]
[394668678,1763850826083,-324.4755957,0.00046849,120]
[394668679,1763850826108,-512.42014102,0.00046849,120]
[394668680,1763850826131,-469.38272385,0.00046849,120]
[394668681,1763850826156,-347.55950932,0.00046849,120]
[394668682,1763850826180,-507.97222901,0.00046849,120]
[394668683,1763850826204,-500.0,0.00046849,120]
[394668684,1763850826230,-531.07672892,0.00046849,120]
[394668685,1763850826254,-503.75403798,0.00046849,120]
[394668686,1763850826278,-526.57662007,0.00046849,120]
[394668687,1763850826304,-513.78474157,0.00046849,30]
[394668688,1763850826329,-500.0,0.00046849,120]
[394668689,1763850826354,-500.0,0.00046849,120]
[394668690,1763850826379,-615.3,0.00046849,120]
[394668691,1763850826404,-500.0,0.00046849,120]
[394668692,1763850826428,-525.42996384,0.00046849,120]
[394668693,1763850826454,-233.60486232,0.00046849,120]
[394668694,1763850826479,-776.39,0.00046849,120]
[394668695,1763850826503,-500.0,0.00046849,120]
[394668696,1763850826527,-396.9790735,0.00046849,120]
[394668697,1763850826551,-500.0,0.00046849,120]
[394668698,1763850826576,-171.03652225,0.00046849,120]
[394668699,1763850826600,-500.0,0.00046849,120]
[394668700,1763850826625,-500.0,0.00046849,120]
[394668701,1763850826650,-535.82348736,0.00046849,120]
[394668702,1763850826678,-541.05048646,0.00046849,120]
[394668703,1763850826704,-500.0,0.00046849,120]
[394668704,1763850826729,-235.63773418,0.00046849,120]
[394668705,1763850826754,-520.33760321,0.00046849,30]
[394668706,1763850826780,-411.50397929,0.00046849,120]
[394668707,1763850826804,-293.42973273,0.00046849,120]
[394668708,1763850826830,-1335.23,0.00046849,120]
[394668709,1763850826967,-198.27013762,0.00046849,120]
[394668710,1763850827018,-500.0,0.00046849,120]
[394668711,1763850827044,-332.41743665,0.00046849,120]
[394668712,1763850827067,-572.1,0.00046849,120]
[394668713,1763850827092,-509.15363004,0.00046849,120]
[394668714,1763850827117,-500.0,0.00046849,120]
[394668715,1763850827140,-500.0,0.00046849,120]
[394668716,1763850827164,-500.0,0.00046849,120]
[394668717,1763850827188,-440.12211893,0.00046849,120]
[394668718,1763850827212,-500.0,0.00046849,120]
[394668719,1763850827237,-204.08395105,0.00046849,120]
[394668720,1763850827263,-500.0,0.00046849,120]
[394668721,1763850827289,-516.36655501,0.00046849,120]
[394668722,1763850827316,-518.75744473,0.00046849,120]
[394668723,1763850827341,-500.0,0.00046849,120]
[394668724,1763850827367,-500.0,0.00046849,120]
[394668725,1763850827393,-500.0,0.00046849,120]
[394668726,1763850827418,-500.0,0.00046849,120]
[394668727,1763850827443,-500.0,0.00046849,120]
[394668728,1763850827469,-500.0,0.00046849,120]
[394668729,1763850827494,-237.32056406,0.00046849,120]
[394668730,1763850827519,-723.67,0.00046849,120]
[394668731,1763850827544,-500.0,0.00046849,120]
[394668732,1763850827569,-500.0,0.00046849,120]
[394668733,1763850827593,-72.51227064,0.00046849,120]
[394668734,1763850840803,-169.0,0.00028658,30]
[394668735,1763850840834,-177.01461475,0.00031,120]
[394668736,1763850840861,-177.01461475,0.000319,120]
[394668737,1763850840887,-155.0,0.00031945,49]
[394668738,1763850840917,-177.01461475,0.000329,120]
[394668739,1763850840944,-1162.36070326,0.000332,117]
[394668740,1763850840970,-1162.36070326,0.000332,117]
[394668741,1763850840995,-1162.36070326,0.000332,117]
[394668742,1763850841023,-162.0,0.00036877,93]
[394668743,1763850841059,-500.0,0.00046575,120]
[394668744,1763850841084,-500.0,0.00046575,120]
[394668745,1763850841111,-1770.44,0.00046575,120]
[394668746,1763850841137,-500.0,0.00046575,120]
[394668747,1763850841162,-500.0,0.00046575,120]
[394668748,1763850841188,-500.0,0.00046575,120]
[394668749,1763850841214,-500.0,0.00046575,120]
[394668750,1763850841239,-196.04445438,0.00046575,120]
[394668751,1763850841264,-336.02698813,0.00046575,120]
[394668752,1763850841289,-500.0,0.00046575,120]
[394668753,1763850841313,-1216.15,0.00046575,120]
[394668754,1763850841338,-1055.61,0.00046575,120]
[394668755,1763850841364,-994.61,0.00046575,120]
[394668756,1763850841389,-587.29,0.00046575,120]
[394668757,1763850841414,-500.0,0.00046575,120]
[394668758,1763850841441,-427.48772936,0.00046849,120]
[394668759,1763850841468,-531.34593009,0.00046849,120]
[394668760,1763850841492,-500.0,0.00046849,120]
[394668761,1763850841517,-500.0,0.00046849,120]
[394668762,1763850841542,-500.0,0.00046849,120]
[394668763,1763850841567,-500.0,0.00046849,120]
[394668764,1763850841592,-500.0,0.00046849,120]
[394668765,1763850841617,-500.0,0.00046849,120]
[394668766,1763850841848,-521.95478326,0.00046849,120]
[394668767,1763850841874,-224.36814998,0.00046849,120]
[394668768,1763850841899,-500.0,0.00046849,120]
[394668769,1763850841923,-536.89,0.00046849,120]
[394668770,1763850841948,-500.0,0.00046849,120]
[394668771,1763850841974,-500.0,0.00046849,120]
[394668772,1763850841998,-500.0,0.00046849,120]
[394668773,1763850842027,-538.13179067,0.00046849,120]
[394668774,1763850842052,-500.0,0.00046849,120]
[394668775,1763850842077,-528.39144927,0.00046849,120]
[394668776,1763850842102,-500.0,0.00046849,120]
[394668777,1763850842126,-500.0,0.00046849,120]
[394668778,1763850842150,-2331.83,0.00046849,120]
[394668779,1763850842175,-500.0,0.00046849,30]
[394668780,1763850842199,-500.0,0.00046849,120]
[394668781,1763850842223,-514.17142797,0.00046849,120]
[394668782,1763850842247,-500.0,0.00046849,120]
[394668783,1763850842271,-500.0,0.00046849,120]
[394668784,1763850842296,-536.5773572,0.00046849,120]
[394668785,1763850842321,-514.65928246,0.00046849,120]
[394668786,1763850842348,-636.73,0.00046849,120]
[394668787,1763850842373,-500.0,0.00046849,120]
[394668788,1763850842399,-529.88901389,0.00046849,120]
[394668789,1763850842425,-500.0,0.00046849,120]
[394668790,1763850842450,-500.0,0.00046849,120]
[394668791,1763850842476,-1000.0,0.00046849,120]
[394668792,1763850842500,-500.0,0.00046849,120]
[394668793,1763850842529,-500.0,0.00046849,120]
[394668794,1763850842552,-336.71765967,0.00046849,120]
[394668795,1763850842576,-509.7316953,0.00046849,120]
[394668796,1763850842603,-524.27488124,0.00046849,120]
[394668797,1763850842628,-500.0,0.00046849,120]
[394668798,1763850842653,-500.0,0.00046849,120]
[394668799,1763850842683,-1359.05,0.00046849,120]
[394668800,1763850842709,-395.84946047,0.00046849,120]
[394668801,1763850842735,-503.28638506,0.00046849,120]
[394668802,1763850842760,-500.0,0.00046849,120]
[394668803,1763850842785,-1834.27,0.00046849,120]
[394668804,1763850842811,-517.49878552,0.00046849,120]
[394668805,1763850842836,-500.0,0.00046849,120]
[394668806,1763850842861,-500.0,0.00046849,120]
[394668807,1763850842885,-517.94177873,0.00046849,120]
[394668808,1763850842911,-500.0,0.00046849,120]
[394668809,1763850842936,-500.0,0.00046849,120]
[394668810,1763850842961,-553.55,0.00046849,120]
[394668811,1763850842987,-500.0,0.00046849,120]
[394668812,1763850843013,-500.0,0.00046849,120]
[394668813,1763850843041,-500.0,0.00046849,120]
[394668814,1763850843068,-500.0,0.00046849,120]
[394668815,1763850843094,-500.0,0.00046849,120]
[394668816,1763850843119,-600.09,0.00046849,120]
[394668817,1763850843145,-500.0,0.00046849,120]
[394668818,1763850843171,-500.0,0.00046849,120]
[394668819,1763850843196,-518.65396534,0.00046849,120]
[394668820,1763850843220,-500.0,0.00046849,120]
[394668821,1763850843245,-500.0,0.00046849,120]
[394668822,1763850843272,-1675.44,0.00046849,120]
[394668823,1763850843298,-500.0,0.00046849,120]
[394668824,1763850843323,-522.51840505,0.00046849,120]
[394668825,1763850843354,-500.0,0.00046849,120]
[394668826,1763850843380,-500.0,0.00046849,120]
[394668827,1763850843407,-500.0,0.00046849,120]
[394668828,1763850843433,-500.0,0.00046849,120]
[394668829,1763850843461,-1457.17,0.00046849,120]
[394668830,1763850843486,-500.0,0.00046849,120]
[394668831,1763850843512,-500.0,0.00046849,120]
[394668832,1763850843537,-500.0,0.00046849,120]
[394668833,1763850843562,-500.0,0.00046849,120]
[394668834,1763850843587,-500.0,0.00046849,120]
[394668835,1763850843613,-500.0,0.00046849,120]
[394668836,1763850843638,-505.54,0.00046849,120]
[394668837,1763850843666,-543.97028846,0.00046849,120]
[394668838,1763850843700,-374.8542011,0.00046849,120]
[394668839,1763850843726,-500.0,0.00046849,120]
[394668840,1763850843754,-245.20687146,0.00046849,120]
[394668841,1763850843780,-500.0,0.00046849,120]
[394668842,1763850843804,-323.98414312,0.00046849,120]
[394668843,1763850843829,-659.29,0.00046849,120]
[394668844,1763850843854,-644.49,0.00046849,120]
[394668845,1763850843879,-1188.34,0.00046849,120]
[394668846,1763850843906,-297.00337726,0.00046849,120]
[394668847,1763850843933,-500.0,0.00046849,120]
[394668848,1763850843959,-410.59095987,0.00046849,120]
[394668849,1763850843986,-500.0,0.00046849,120]
[394668850,1763850844012,-1338.25,0.00046849,120]
[394668851,1763850844038,-500.0,0.00046849,120]
[394668852,1763850844064,-500.0,0.00046849,120]
[394668853,1763850844090,-500.0,0.00046849,120]
[394668854,1763850844242,-516.28771835,0.00046849,120]
[394668855,1763850844272,-500.0,0.00046849,120]
[394668856,1763850844301,-541.83432436,0.00046849,120]
[394668857,1763850844328,-500.0,0.00046849,30]
[394668858,1763850844356,-504.14843638,0.00046849,120]
[394668859,1763850844382,-743.5,0.00046849,120]
[394668860,1763850844410,-395.25920175,0.00046849,120]
[394668861,1763850844437,-420.33264018,0.00046849,120]
[394668862,1763850844464,-380.63861931,0.00046849,120]
[394668863,1763850844492,-1252.72,0.00046849,120]
[394668864,1763850844519,-393.46152571,0.00046849,120]
[394668865,1763850844547,-460.5194658,0.00046849,120]
[394668866,1763850844574,-1117.42,0.00046849,120]
[394668867,1763850844604,-238.86937768,0.00046849,120]
[394668868,1763850844632,-500.0,0.00046849,120]
[394668869,1763850844664,-500.0,0.00046849,120]
[394668870,1763850844690,-500.0,0.00046849,120]
[394668871,1763850844717,-503.66,0.00046849,120]
[394668872,1763850844742,-269.51336542,0.00046849,120]
[394668873,1763850844769,-500.0,0.00046849,120]
[394668874,1763850844795,-719.98,0.00046849,120]
[394668875,1763850844821,-500.0,0.00046849,120]
[394668876,1763850844849,-500.0,0.00046849,120]
[394668877,1763850844874,-432.7435178,0.00046849,120]
[394668878,1763850844901,-500.0,0.00046849,120]
[394668879,1763850844927,-500.0,0.00046849,120]
[394668880,1763850844953,-535.91,0.00046849,120]
[394668881,1763850844980,-340.81214351,0.00046849,120]
[394668882,1763850845008,-500.0,0.00046849,120]
[394668883,1763850845036,-524.52267517,0.00046849,120]
[394668884,1763850845063,-606.28354724,0.00046849,120]
[394668885,1763850845089,-780.85,0.00046849,120]
[394668886,1763850845116,-500.0,0.00046849,120]
[394668887,1763850845141,-512.25789501,0.00046849,120]
[394668888,1763850845168,-500.0,0.00046849,120]
[394668889,1763850845195,-554.00240067,0.00046849,120]
[394668890,1763850845221,-519.70397233,0.00046849,120]
[394668891,1763850845247,-538.13586251,0.00046849,120]
[394668892,1763850845272,-500.0,0.00046849,120]
[394668893,1763850845296,-500.0,0.00046849,120]
[394668894,1763850845321,-514.61793154,0.00046849,120]
[394668895,1763850845346,-500.0,0.00046849,120]
[394668896,1763850845371,-487.10524506,0.00046849,120]
[394668897,1763850845398,-552.93334527,0.00046849,120]
[394668898,1763850845424,-552.83,0.00046849,120]
[394668899,1763850845450,-530.32140499,0.00046849,120]
[394668900,1763850845477,-500.0,0.00046849,120]
[394668901,1763850845503,-500.0,0.00046849,120]
[394668902,1763850845529,-500.0,0.00046849,120]
[394668903,1763850845557,-534.39254296,0.00046849,120]
[394668904,1763850845584,-500.0,0.00046849,120]
[394668905,1763850845610,-500.0,0.00046849,120]
[394668906,1763850845638,-500.0,0.00046849,120]
[394668907,1763850845667,-500.0,0.00046849,120]
[394668908,1763850845694,-449.46307645,0.00046849,120]
[394668909,1763850845727,-500.0,0.00046849,120]
[394668910,1763850845758,-500.0,0.00046849,120]
[394668911,1763850845785,-408.19221876,0.00046849,120]
[394668912,1763850845814,-554.09,0.00046849,120]
[394668913,1763850845841,-500.0,0.00046849,120]
[394668914,1763850845868,-500.0,0.00046849,120]
[394668915,1763850845896,-500.0,0.00046849,120]
[394668916,1763850845925,-1710.25,0.00046849,120]
[394668917,1763850845954,-544.28554771,0.00046849,120]
[394668918,1763850845982,-500.0,0.00046849,120]
[394668919,1763850846011,-236.4362343,0.00046849,120]
[394668920,1763850846038,-1076.89,0.00046849,120]
[394668921,1763850846066,-1005.28,0.00046849,120]
[394668922,1763850846094,-500.0,0.00046849,120]
[394668923,1763850846123,-537.23458073,0.00046849,120]
[394668924,1763850846150,-3801.09,0.00046849,120]
[394668925,1763850846177,-528.99557373,0.00046849,120]
[394668926,1763850846204,-500.0,0.00046849,120]
[394668927,1763850846233,-194.25615481,0.00046849,120]
[394668928,1763850846262,-500.0,0.00046849,120]
[394668929,1763850846290,-500.0,0.00046849,120]
[394668930,1763850846318,-500.0,0.00046849,120]
[394668931,1763850846348,-686.34,0.00046849,120]
[394668932,1763850846378,-500.0,0.00046849,120]
[394668933,1763850846407,-2232.67,0.00046849,120]
[394668934,1763850846436,-500.0,0.00046849,120]
[394668935,1763850846467,-521.92,0.00046849,120]
[394668936,1763850846496,-500.0,0.00046849,120]
[394668937,1763850846525,-232.98115073,0.00046849,120]
[394668938,1763850846554,-500.0,0.00046849,120]
[394668939,1763850846583,-499.38167647,0.00046849,120]
[394668940,1763850846612,-500.0,0.00046849,120]
[394668941,1763850846774,-500.0,0.00046849,120]
[394668942,1763850846805,-500.0,0.00046849,120]
[394668943,1763850846837,-500.0,0.00046849,120]
[394668944,1763850846868,-423.25464821,0.00046849,120]
[394668945,1763850846900,-1901.1,0.00046849,120]
[394668946,1763850846931,-500.0,0.00046849,120]
[394668947,1763850846961,-542.42979895,0.00046849,120]
[394668948,1763850846992,-500.0,0.00046849,120]
[394668949,1763850847023,-504.66099308,0.00046849,120]
[394668950,1763850847054,-513.37104628,0.00046849,120]
[394668951,1763850847086,-500.0,0.00046849,120]
[394668952,1763850847117,-500.0,0.00046849,120]
[394668953,1763850847148,-496.68135787,0.00046849,120]
[394668954,1763850847178,-1318.33,0.00046849,120]
[394668955,1763850847208,-500.0,0.00046849,120]
[394668956,1763850847241,-500.0,0.00046849,120]
[394668957,1763850847276,-500.0,0.00046849,120]
[394668958,1763850847309,-513.87183551,0.00046849,120]
[394668959,1763850847340,-271.9158819,0.00046849,120]
[394668960,1763850847371,-390.77258355,0.00046849,120]
[394668961,1763850847407,-2068.32,0.00046849,120]
[394668962,1763850847440,-296.65909309,0.00046849,120]
[394668963,1763850847474,-500.0,0.00046849,120]
[394668964,1763850847508,-500.0,0.00046849,120]
[394668965,1763850847541,-500.0,0.00046849,120]
[394668966,1763850847573,-500.0,0.00046849,120]
[394668967,1763850847607,-313.31242925,0.00046849,120]
[394668968,1763850847639,-500.0,0.00046849,120]
[394668969,1763850847672,-500.0,0.00046849,120]
[394668970,1763850847705,-1907.76,0.00046849,120]
[394668971,1763850847740,-498.56845054,0.00046849,120]
[394668972,1763850847771,-500.0,0.00046849,120]
[394668973,1763850847803,-396.15426608,0.00046849,120]
[394668974,1763850847836,-500.0,0.00046849,120]
[394668975,1763850847867,-470.26770536,0.00046849,120]
[394668976,1763850847902,-560.43,0.00046849,120]
[394668977,1763850847937,-500.0,0.00046849,120]
[394668978,1763850847972,-500.0,0.00046849,120]
[394668979,1763850848006,-500.0,0.00046849,120]
[394668980,1763850848040,-500.0,0.00046849,120]
[394668981,1763850848077,-3975.59,0.00046849,120]
[394668982,1763850848110,-751.79,0.00046849,120]
[394668983,1763850848143,-208.8989641,0.00046849,120]
[394668984,1763850848179,-478.20464051,0.00046849,120]
[394668985,1763850848214,-500.0,0.00046849,120]
[394668986,1763850848253,-500.0,0.00046849,120]
[394668987,1763850848289,-430.26104056,0.00046849,120]
[394668988,1763850848321,-441.94036156,0.00046849,120]
[394668989,1763850848355,-753.83,0.00046849,120]
[394668990,1763850848393,-500.0,0.00046849,120]
[394668991,1763850848426,-500.0,0.00046849,120]
[394668992,1763850848459,-500.0,0.00046849,120]
[394668993,1763850848497,-1070.76,0.00046849,120]
[394668994,1763850848532,-500.0,0.00046849,120]
[394668995,1763850848568,-527.01593535,0.00046849,120]
[394668996,1763850848604,-543.74952331,0.00046849,120]
[394668997,1763850848641,-1117.81,0.00046849,120]
[394668998,1763850848679,-548.03,0.00046849,120]
[394668999,1763850848713,-500.0,0.00046849,120]
[394669000,1763850848748,-371.87609603,0.00046849,120]
[394669001,1763850848785,-556.28542033,0.00046849,120]
[394669002,1763850848820,-541.12,0.00046849,120]
[394669003,1763850848857,-500.0,0.00046849,120]
[394669004,1763850848893,-500.0,0.00046849,120]
[394669005,1763850848931,-500.0,0.00046849,120]
[394669006,1763850848966,-856.8,0.00046849,120]
[394669007,1763850849003,-500.0,0.00046849,120]
[394669008,1763850849039,-362.71848183,0.00046849,120]
[394669009,1763850849076,-1509.89,0.00046849,120]
[394669010,1763850849114,-500.0,0.00046849,120]
[394669011,1763850849150,-247.58320961,0.00046849,120]
[394669012,1763850849188,-500.0,0.00046849,120]
[394669013,1763850849226,-500.0,0.00046849,120]
[394669014,1763850849267,-500.0,0.00046849,120]
[394669015,1763850849305,-500.0,0.00046849,60]
[394669016,1763850849349,-639.41,0.00046849,120]
[394669017,1763850849387,-2168.89,0.00046849,120]
[394669018,1763850849422,-531.67614697,0.00046849,120]
[394669019,1763850849454,-2124.44,0.00046849,120]
[394669020,1763850849486,-504.55924021,0.00046849,120]
[394669021,1763850849518,-534.94,0.00046849,120]
[394669022,1763850849551,-500.0,0.00046849,120]
[394669023,1763850849588,-544.55252423,0.00046849,120]
[394669024,1763850849624,-517.13735694,0.00046849,120]
[394669025,1763850849793,-500.0,0.00046849,120]
[394669026,1763850849830,-500.0,0.00046849,120]
[394669027,1763850849869,-500.0,0.00046849,120]
[394669028,1763850849905,-500.0,0.00046849,120]
[394669029,1763850849941,-625.69,0.00046849,120]
[394669030,1763850849974,-500.0,0.00046849,120]
[394669031,1763850850010,-500.0,0.00046849,120]
[394669032,1763850850044,-2260.36,0.00046849,120]
[394669033,1763850850081,-538.40606498,0.00046849,120]
[394669034,1763850850117,-500.0,0.00046849,120]
[394669035,1763850850151,-999.35,0.00046849,120]
[394669036,1763850850186,-500.0,0.00046849,120]
[394669037,1763850850220,-500.0,0.00046849,120]
[394669038,1763850850253,-500.0,0.00046849,120]
[394669039,1763850850289,-500.0,0.00046849,120]
[394669040,1763850850325,-1841.69,0.00046849,120]
[394669041,1763850850362,-756.85,0.00046849,120]
[394669042,1763850850398,-500.0,0.00046849,30]
[394669043,1763850850434,-500.0,0.00046849,120]
[394669044,1763850850469,-500.0,0.00046849,120]
[394669045,1763850850505,-838.95,0.00046849,120]
[394669046,1763850850544,-500.0,0.00046849,120]
[394669047,1763850850579,-185.47236257,0.00046849,120]
[394669048,1763850850612,-500.0,0.00046849,120]
[394669049,1763850850648,-795.1,0.00046849,120]
[394669050,1763850850687,-1338.29,0.00046849,120]
[394669051,1763850850723,-2432.1,0.00046849,120]
[394669052,1763850850758,-500.0,0.00046849,120]
[394669053,1763850850792,-500.0,0.00046849,120]
[394669054,1763850850825,-524.26686888,0.00046849,120]
[394669055,1763850850861,-500.0,0.00046849,120]
[394669056,1763850850894,-500.0,0.00046849,120]
[394669057,1763850850925,-500.0,0.00046849,120]
[394669058,1763850850954,-510.77,0.00046849,120]
[394669059,1763850850984,-519.36,0.00046849,120]
[394669060,1763850851019,-2210.59,0.00046849,120]
[394669061,1763850851051,-1569.42,0.00046849,120]
[394669062,1763850851082,-2271.94,0.00046849,120]
[394669063,1763850851112,-500.0,0.00046849,120]
[394669064,1763850851143,-545.65144822,0.00046849,120]
[394669065,1763850851175,-941.85,0.00046849,120]
[394669066,1763850851205,-500.0,0.00046849,120]
[394669067,1763850851235,-500.0,0.00046849,120]
[394669068,1763850851265,-1509.76,0.00046849,120]
[394669069,1763850851295,-500.0,0.00046849,120]
[394669070,1763850851327,-1296.16,0.00046849,120]
[394669071,1763850851357,-997.69,0.00046849,120]
[394669072,1763850851387,-579.12,0.00046849,120]
[394669073,1763850851416,-533.94608033,0.00046849,120]
[394669074,1763850851445,-500.0,0.00046849,120]
[394669075,1763850851477,-580.05,0.00046849,120]
[394669076,1763850851507,-500.0,0.00046849,120]
[394669077,1763850851536,-518.41173853,0.00046849,120]
[394669078,1763850851566,-500.0,0.00046849,120]
[394669079,1763850851602,-1829.26,0.00046849,120]
[394669080,1763850851632,-500.0,0.00046849,120]
[394669081,1763850851664,-500.0,0.00046849,120]
[394669082,1763850851692,-647.16,0.00046849,120]
[394669083,1763850851721,-527.61434868,0.00046849,120]
[394669084,1763850851755,-371.0514163,0.00046849,120]
[394669085,1763850851783,-500.0,0.00046849,120]
[394669086,1763850851812,-500.0,0.00046849,120]
[394669087,1763850851842,-500.0,0.00046849,120]
[394669088,1763850851871,-543.49113152,0.00046849,120]
[394669089,1763850851900,-500.0,0.00046849,120]
[394669090,1763850851929,-3107.23,0.00046849,120]
[394669091,1763850851957,-500.0,0.00046849,120]
[394669092,1763850851985,-4100.95,0.00046849,120]
[394669093,1763850852015,-500.0,0.00046849,120]
[394669094,1763850852044,-500.0,0.00046849,120]
[394669095,1763850852073,-500.0,0.00046849,120]
[394669096,1763850852102,-558.74,0.00046849,120]
[394669097,1763850852131,-500.0,0.00046849,120]
[394669098,1763850852165,-500.0,0.00046849,120]
[394669099,1763850852192,-500.0,0.00046849,120]
[394669100,1763850852217,-814.85,0.00046849,120]
[394669101,1763850852242,-509.83464934,0.00046849,120]
[394669102,1763850852267,-520.68090369,0.00046849,120]
[394669103,1763850852292,-705.5,0.00046849,120]
[394669104,1763850852317,-4856.33,0.00046849,120]
[394669105,1763850852343,-1994.12,0.00046849,120]
[394669106,1763850852495,-1154.21,0.00046849,120]
[394669107,1763850852523,-513.8977188,0.00046849,120]
[394669108,1763850852550,-9668.64,0.00046849,120]
[394669109,1763850852575,-1753.8,0.00046849,120]
[394669110,1763850852602,-1574.88,0.00046849,120]
[394669111,1763850852627,-500.0,0.00046849,120]
[394669112,1763850852654,-500.0,0.00046849,120]
[394669113,1763850852684,-500.0,0.00046849,120]
[394669114,1763850852709,-500.0,0.00046849,120]
[394669115,1763850852737,-1235.33,0.00046849,120]
[394669116,1763850852764,-572.05,0.00046849,120]
[394669117,1763850852793,-500.0,0.00046849,120]
[394669118,1763850852820,-500.0,0.00046849,120]
[394669119,1763850852849,-1514.98,0.00046849,120]
[394669120,1763850852877,-239.72490327,0.00046849,120]
[394669121,1763850852905,-500.0,0.00046849,120]